bitfinex-derivatives/quotes_BTCF0:USTF0_20250212
["timestamp","ask_amount","ask_price","bid_price","bid_amount"]
[1739349033018,0.00142165,96335.0,96330.0,0.3608]
[1739349033819,0.00142165,96335.0,96332.0,0.00115573]
[1739349034009,0.00142165,96334.0,96332.0,0.00115573]
[1739349034808,0.00142165,96334.0,96332.0,0.00315573]
[1739349035014,0.00142165,96333.0,96332.0,0.00315573]
[1739349035525,0.00142165,96333.0,96332.0,0.00215573]
[1739349035824,0.00142165,96333.0,96332.0,0.00115573]
[1739349037125,0.00442165,96333.0,96332.0,0.00115573]
[1739349037916,0.00142165,96333.0,96332.0,0.00015573]
[1739349038127,0.00442165,96333.0,96332.0,0.00115573]
[1739349038826,0.00442165,96333.0,96332.0,0.00015573]
[1739349040321,0.00142165,96333.0,96332.0,0.00015573]
[1739349040526,0.0230263,96333.0,96332.0,0.00015573]
[1739349040726,0.00342165,96333.0,96332.0,0.00015573]
[1739349042529,0.02310307,96333.0,96332.0,0.00015573]
[1739349046122,0.00342165,96333.0,96332.0,0.00015573]
[1739349046432,0.00342165,96333.0,96332.0,0.20778153]
[1739349047023,0.01952136,96348.0,96332.0,0.00015573]
[1739349047226,0.01952136,96348.0,96342.0,0.2076042]
[1739349048132,0.01952136,96348.0,96342.0,0.2432042]
[1739349050332,0.01952136,96348.0,96342.0,0.2775042]
[1739349056242,0.01952136,96348.0,96342.0,0.20605844]
[1739349060447,0.09562309,96349.0,96342.0,0.20605844]
[1739349063749,0.0169982,96352.0,96342.0,0.0699]
[1739349063951,0.0169982,96352.0,96348.0,0.2075913]
[1739349064247,0.09561735,96351.0,96348.0,0.2075913]
[1739349064946,0.09561735,96351.0,96349.0,0.5683878]
[1739349067153,0.18837269,96358.0,96349.0,0.5683878]
[1739349067351,0.18837269,96358.0,96349.0,0.5693878]
[1739349067554,0.01934432,96358.0,96349.0,0.5693878]
[1739349067752,0.00015573,96359.0,96349.0,0.5693878]
[1739349068157,0.069,96362.0,96349.0,0.5693878]
[1739349068345,0.069,96362.0,96349.0,0.5683878]
[1739349068541,0.069,96362.0,96349.0,0.5693878]
[1739349069259,0.29590863,96362.0,96349.0,0.5693878]
[1739349070455,0.29590863,96362.0,96349.0,0.5683878]
[1739349070658,0.29590863,96362.0,96349.0,0.5693878]
[1739349071351,0.29590863,96362.0,96349.0,0.3618]
[1739349071551,0.29590863,96362.0,96350.0,0.2075856]
[1739349071752,0.29590863,96362.0,96351.0,0.2075838]
[1739349072664,0.09561425,96361.0,96351.0,0.2075838]
[1739349074564,0.09561425,96361.0,96351.0,0.2085838]
[1739349074763,0.26308542,96361.0,96351.0,0.2085838]
[1739349075159,0.34462289,96361.0,96351.0,0.2085838]
[1739349075862,0.2075666,96360.0,96351.0,0.2085838]
[1739349078067,0.2075666,96360.0,96351.0,0.001]
[1739349079063,0.2075666,96360.0,96349.0,0.29036038]
[1739349080268,0.2075666,96360.0,96349.0,0.29136038]
[1739349080566,0.2075727,96357.0,96349.0,0.29136038]
[1739349082871,0.2095727,96357.0,96349.0,0.29136038]
[1739349084285,0.09561544,96356.0,96349.0,0.29136038]
[1739349086780,0.09561544,96356.0,96349.0,0.29036038]
[1739349086980,0.09661544,96356.0,96349.0,0.29136038]
[1739349088781,0.09661544,96356.0,96349.0,0.001]
[1739349089884,0.5683843,96352.0,96349.0,0.001]
[1739349090087,0.5683843,96352.0,96342.0,0.0699]
[1739349090387,0.64992177,96352.0,96342.0,0.0699]
[1739349090980,0.65092177,96352.0,96349.0,0.001]
[1739349091288,0.5693843,96352.0,96349.0,0.001]
[1739349092677,0.5703843,96352.0,96342.0,0.0699]
[1739349092887,0.65192177,96352.0,96342.0,0.0699]
[1739349093387,0.64992177,96352.0,96342.0,0.0699]
[1739349093588,0.65292177,96352.0,96349.0,0.001]
[1739349093783,0.5713843,96352.0,96349.0,0.00058257]
[1739349094289,0.5713843,96352.0,96342.0,0.0699]
[1739349094690,0.65292177,96352.0,96342.0,0.0699]
[1739349095693,0.67286959,96352.0,96342.0,0.0699]
[1739349095991,0.38374782,96352.0,96342.0,0.2775035]
[1739349096387,0.3638,96352.0,96346.0,0.2075954]
[1739349096582,0.3638,96352.0,96347.0,0.2075923]
[1739349096787,0.003,96352.0,96351.0,0.2075849]
[1739349097188,0.02002852,96362.0,96355.0,0.2075753]
[1739349097492,0.11173234,96362.0,96356.0,0.0386]
[1739349097893,0.11173234,96362.0,96357.0,0.037]
[1739349098197,0.11173234,96362.0,96357.0,0.2445713]
[1739349098687,0.11173234,96362.0,96361.0,0.2075633]
[1739349099988,0.11373234,96362.0,96361.0,0.2085633]
[1739349100698,0.11373234,96362.0,96361.0,0.2095633]
[1739349100890,0.002,96362.0,96361.0,0.2095633]
[1739349111408,0.002,96362.0,96361.0,0.5703633]
[1739349116306,0.002,96362.0,96361.0,0.3628]
[1739349118409,0.002,96362.0,96361.0,0.002]
[1739349126719,0.002,96362.0,96361.0,0.0385]
[1739349135616,0.00342119,96362.0,96361.0,0.0385]
[1739349137017,0.00342119,96362.0,96361.0,0.10858]
[1739349138324,0.07061466,96393.0,96361.0,0.10858]
[1739349138325,0.07061466,96393.0,96361.0,0.40858]
[1739349138527,0.07061466,96393.0,96392.0,0.5682966]
[1739349138825,0.1,96400.0,96399.0,0.2074815]
[1739349141727,0.1,96400.0,96399.0,0.2084815]
[1739349151628,0.1,96400.0,96399.0,0.2074815]
[1739349158834,0.1,96400.0,96399.0,0.2770415]
[1739349161837,0.1,96400.0,96399.0,0.2074815]
[1739349162037,0.1,96400.0,96399.0,0.2769215]
[1739349164445,0.1,96400.0,96399.0,0.9985215]
[1739349175649,0.1,96400.0,96399.0,1.0015215]
[1739349179156,0.1,96400.0,96399.0,1.2184215]
[1739349182555,0.1,96400.0,96399.0,1.2185015]
[1739349182761,0.1,96400.0,96399.0,0.7881815]
[1739349183455,0.1,96400.0,96399.0,0.5712815]
[1739349184961,0.1,96400.0,96399.0,0.5692815]
[1739349185259,0.1,96400.0,96399.0,0.5682815]
[1739349189162,0.1,96400.0,96399.0,0.2074815]
[1739349195470,0.08989505,96409.0,96408.0,0.2074622]
[1739349198269,0.02033505,96409.0,96408.0,0.2074622]
[1739349198471,0.08989505,96409.0,96408.0,0.2074622]
[1739349198770,0.08989505,96409.0,96408.0,0.1074622]
[1739349202073,0.08989505,96409.0,96396.0,0.3608]
[1739349202261,0.12410614,96406.0,96396.0,0.3608]
[1739349203270,0.12410614,96406.0,96402.0,0.207473]
[1739349203470,0.06952,96407.0,96402.0,0.207473]
[1739349203871,0.3608,96406.0,96402.0,0.207473]
[1739349204474,0.06952,96407.0,96402.0,0.207473]
[1739349204674,0.3608,96406.0,96402.0,0.207473]
[1739349215574,0.06968,96407.0,96402.0,0.207473]
[1739349215781,0.3608,96406.0,96402.0,0.207473]
[1739349215979,0.06968,96407.0,96402.0,0.207473]
[1739349216184,0.3608,96406.0,96402.0,0.207473]
[1739349221286,0.06968,96407.0,96402.0,0.207473]
[1739349221477,0.3608,96406.0,96402.0,0.207473]
[1739349222288,0.3608,96406.0,96403.0,0.0724]
[1739349225587,0.43072,96406.0,96403.0,0.0724]
[1739349230090,0.06992,96406.0,96403.0,0.0724]
[1739349230291,0.43072,96406.0,96403.0,0.0724]
[1739349233403,0.06992,96406.0,96403.0,0.0724]
[1739349233603,0.43072,96406.0,96403.0,0.0724]
[1739349234405,0.06992,96406.0,96403.0,0.0724]
[1739349234597,0.43072,96406.0,96403.0,0.0724]
[1739349237008,0.4306,96406.0,96403.0,0.0724]
[1739349239699,0.0698,96406.0,96403.0,0.0724]
[1739349239899,0.4306,96406.0,96403.0,0.0724]
[1739349241407,0.0698,96406.0,96403.0,0.0724]
[1739349241601,0.4306,96406.0,96403.0,0.0724]
[1739349242503,0.2074826,96399.0,96397.0,0.037]
[1739349245509,0.22711213,96399.0,96397.0,0.037]
[1739349253513,0.58791213,96399.0,96397.0,0.037]
[1739349261226,0.65727213,96399.0,96397.0,0.037]
[1739349261415,0.65727213,96399.0,96392.0,0.2074965]
[1739349262920,0.65727213,96399.0,96392.0,0.2084965]
[1739349263127,0.65727213,96399.0,96392.0,0.2104965]
[1739349264526,0.58791213,96399.0,96392.0,0.2104965]
[1739349267532,0.22711213,96399.0,96392.0,0.2104965]
[1739349267732,0.58791213,96399.0,96392.0,0.2104965]
[1739349271727,0.38042953,96399.0,96392.0,0.2104965]
[1739349272329,0.58791213,96399.0,96392.0,0.2104965]
[1739349272638,0.22711213,96399.0,96392.0,0.2104965]
[1739349272824,0.58791213,96399.0,96392.0,0.2104965]
[1739349275341,0.58791213,96399.0,96393.0,0.2074928]
[1739349275643,0.38042953,96399.0,96394.0,0.2074912]
[1739349278337,0.38042953,96399.0,96394.0,0.2084912]
[1739349283143,0.2074901,96395.0,96394.0,0.001]
[1739349284336,0.2074901,96395.0,96390.0,0.00015565]
[1739349284748,0.38042953,96399.0,96390.0,0.00015565]
[1739349285446,0.38042953,96399.0,96390.0,0.00315565]
[1739349285745,0.38042953,96399.0,96390.0,0.00415565]
[1739349287254,0.38042953,96399.0,96390.0,0.00115565]
[1739349287442,0.38042953,96399.0,96390.0,0.00415565]
[1739349290353,0.2074837,96398.0,96390.0,0.00415565]
[1739349292160,0.38042953,96399.0,96390.0,0.00415565]
[1739349292364,0.2074978,96392.0,96390.0,0.00415565]
[1739349303275,0.3608,96394.0,96390.0,0.00415565]
[1739349303466,0.3608,96394.0,96391.0,0.0643]
[1739349304573,0.3608,96394.0,96391.0,0.0663]
[1739349304975,0.3608,96394.0,96391.0,0.0673]
[1739349305869,0.069,96398.0,96391.0,0.0673]
[1739349306070,0.3608,96396.0,96391.0,0.0673]
[1739349307777,0.3608,96396.0,96391.0,0.001]
[1739349307976,0.2074966,96392.0,96391.0,0.001]
[1739349310379,0.2074966,96392.0,96391.0,0.002]
[1739349310974,0.3608,96396.0,96391.0,0.002]
[1739349311174,0.3608,96396.0,96391.0,0.001]
[1739349311479,0.069,96395.0,96391.0,0.001]
[1739349314279,0.069,96395.0,96390.0,0.00015565]
[1739349315084,0.069,96395.0,96390.0,0.20765565]
[1739349315277,0.069,96395.0,96390.0,0.00015565]
[1739349315585,0.069,96395.0,96391.0,0.0341]
[1739349316274,0.069,96395.0,96392.0,0.2074952]
[1739349322186,0.3608,96396.0,96392.0,0.2074952]
[1739349327088,0.3608,96396.0,96394.0,0.2074911]
[1739349328996,0.069,96409.0,96403.0,0.2074716]
[1739349330089,0.3780482,96407.0,96403.0,0.2074716]
[1739349330993,0.3780482,96407.0,96403.0,0.2084716]
[1739349334097,0.3780482,96407.0,96403.0,0.2074716]
[1739349339799,0.0172482,96407.0,96403.0,0.2074716]
[1739349340002,0.3608,96409.0,96403.0,0.2074716]
[1739349342200,0.37857287,96409.0,96403.0,0.2074716]
[1739349344000,0.37857287,96409.0,96407.0,0.2074638]
[1739349346708,0.37857287,96409.0,96407.0,0.2084638]
[1739349357315,0.3608,96409.0,96407.0,0.2084638]
[1739349359117,0.01794557,96412.0,96407.0,0.2084638]
[1739349359716,0.01794557,96412.0,96408.0,0.2074606]
[1739349360710,0.01794557,96412.0,96409.0,0.2074584]
[1739349362921,0.01794557,96412.0,96409.0,0.2084584]
[1739349368022,0.01794557,96412.0,96409.0,0.001]
[1739349369013,0.01794557,96412.0,96409.0,0.2084598]
[1739349372023,0.18902469,96413.0,96409.0,0.2084598]
[1739349372925,0.20506418,96413.0,96409.0,0.2084598]
[1739349373926,0.20506418,96413.0,96409.0,0.001]
[1739349374321,0.01603949,96413.0,96409.0,0.001]
[1739349374625,0.5682413,96418.0,96409.0,0.001]
[1739349375227,0.58429051,96418.0,96409.0,0.001]
[1739349375428,0.3608,96410.0,96409.0,0.001]
[1739349375620,0.42976,96410.0,96409.0,0.001]
[1739349375817,0.06896,96410.0,96409.0,0.001]
[1739349414450,0.06892,96410.0,96409.0,0.001]
[1739349416348,0.08342122,96412.0,96409.0,0.001]
[1739349416651,0.15234122,96412.0,96409.0,0.001]
[1739349418144,0.06892,96412.0,96409.0,0.001]
[1739349418949,0.2763744,96412.0,96409.0,0.001]
[1739349420353,0.06892,96412.0,96409.0,0.001]
[1739349422869,0.3608,96413.0,96409.0,0.001]
[1739349428864,0.3608,96413.0,96409.0,0.00065052]
[1739349429068,0.06892,96417.0,96409.0,0.00065052]
[1739349430469,0.06892,96417.0,96409.0,0.001]
[1739349432267,0.06892,96416.0,96409.0,0.001]
[1739349433370,0.06992,96416.0,96409.0,0.001]
[1739349435071,0.06892,96416.0,96404.0,0.46038]
[1739349435372,0.08146572,96414.0,96409.0,0.001]
[1739349435573,0.06992,96416.0,96409.0,0.001]
[1739349435773,0.001,96416.0,96409.0,0.001]
[1739349435971,0.06892,96415.0,96409.0,0.001]
[1739349438769,0.06892,96415.0,96404.0,0.38997811]
[1739349439073,0.08146572,96414.0,96409.0,0.001]
[1739349439261,0.06992,96415.0,96409.0,0.001]
[1739349440069,0.3608,96414.0,96404.0,0.02809811]
[1739349440265,0.44226572,96414.0,96404.0,0.02809811]
[1739349440775,0.44226572,96414.0,96409.0,0.001]
[1739349441078,0.3608,96414.0,96404.0,0.02111505]
[1739349441275,0.44226572,96414.0,96404.0,0.02111505]
[1739349441873,0.54226572,96414.0,96404.0,0.02111505]
[1739349442375,0.54526572,96414.0,96404.0,0.02111505]
[1739349442770,0.18446572,96414.0,96404.0,0.02111505]
[1739349443283,0.4638,96414.0,96409.0,0.2074591]
[1739349443673,0.4638,96414.0,96404.0,0.02111505]
[1739349443871,0.54526572,96414.0,96404.0,0.02111505]
[1739349444077,0.54526572,96414.0,96407.0,0.207464]
[1739349444263,0.4638,96414.0,96407.0,0.207464]
[1739349445377,0.4608,96414.0,96407.0,0.207464]
[1739349445677,0.103,96414.0,96412.0,0.2074516]
[1739349447278,0.103,96414.0,96412.0,0.2084516]
[1739349450980,0.103,96414.0,96413.0,0.3608]
[1739349451172,0.103,96414.0,96413.0,0.4269]
[1739349452081,0.102,96414.0,96413.0,0.4279]
[1739349456378,0.102,96414.0,96413.0,0.7279]
[1739349456580,0.00155589,96434.0,96433.0,0.2074084]
[1739349457286,0.3608,96459.0,96457.0,0.2073548]
[1739349458179,0.3608,96459.0,96448.0,0.00015556]
[1739349458381,0.3608,96459.0,96451.0,0.2073682]
[1739349459086,0.3608,96459.0,96458.0,0.2073546]
[1739349459582,0.3618,96459.0,96458.0,0.2073546]
[1739349459777,0.1637287,96467.0,96460.0,0.2073501]
[1739349459977,0.1637287,96467.0,96462.0,0.2073459]
[1739349461277,0.1637287,96467.0,96466.0,0.2073374]
[1739349462282,0.1637287,96467.0,96460.0,0.001]
[1739349462478,0.1637287,96467.0,96462.0,0.001]
[1739349462680,0.1637287,96467.0,96466.0,0.001]
[1739349463084,0.1637287,96467.0,96458.0,0.3608]
[1739349463289,0.371064,96467.0,96466.0,0.002]
[1739349463483,0.2073436,96464.0,96448.0,0.00015556]
[1739349463683,0.08146572,96458.0,96448.0,0.00015556]
[1739349463885,0.067,96457.0,96448.0,0.00015556]
[1739349464286,0.06888,96456.0,96448.0,0.00015556]
[1739349464489,0.276239,96456.0,96448.0,0.00015556]
[1739349465280,0.2073646,96454.0,96448.0,0.00015556]
[1739349466075,0.2073646,96454.0,96448.0,0.00115556]
[1739349466280,0.207374,96449.0,96448.0,0.00115556]
[1739349466480,0.568174,96449.0,96448.0,0.00115556]
[1739349466676,0.568174,96449.0,96448.0,0.00015556]
[1739349466886,0.568174,96449.0,96448.0,0.00115556]
[1739349467086,0.568174,96449.0,96448.0,0.00215556]
[1739349468690,0.569174,96449.0,96448.0,0.00215556]
[1739349469188,0.568174,96449.0,96448.0,0.00115556]
[1739349469392,0.569174,96449.0,96448.0,0.00215556]
[1739349469585,0.570174,96449.0,96448.0,0.00215556]
[1739349469986,0.571174,96449.0,96448.0,0.00315556]
[1739349470291,0.570174,96449.0,96448.0,0.00215556]
[1739349470491,0.571174,96449.0,96448.0,0.00315556]
[1739349471387,0.640054,96449.0,96448.0,0.00315556]
[1739349471587,0.639054,96449.0,96448.0,0.00215556]
[1739349472095,0.638054,96449.0,96448.0,0.00115556]
[1739349472391,0.639054,96449.0,96448.0,0.00215556]
[1739349475589,0.638054,96449.0,96448.0,0.00115556]
[1739349475790,0.570174,96449.0,96448.0,0.00215556]
[1739349475997,0.638054,96449.0,96448.0,0.00115556]
[1739349476296,0.639054,96449.0,96448.0,0.00215556]
[1739349478700,0.43168,96449.0,96438.0,0.00155527]
[1739349478900,0.43168,96449.0,96380.0,0.17590144]
[1739349478901,0.2074331,96422.0,96412.0,0.00155593]
[1739349479098,0.2074417,96418.0,96412.0,0.00155593]
[1739349479400,0.2074483,96415.0,96412.0,0.00155593]
[1739349479591,0.2074508,96414.0,96412.0,0.00110074]
[1739349479991,0.06888,96413.0,96412.0,0.00110074]
[1739349480498,0.06888,96413.0,96412.0,0.00210074]
[1739349480693,0.06888,96413.0,96412.0,0.001]
[1739349482198,0.07188,96413.0,96412.0,0.001]
[1739349482900,0.07388,96413.0,96412.0,0.001]
[1739349483597,0.07188,96413.0,96406.0,0.3608]
[1739349483802,0.07388,96413.0,96412.0,0.001]
[1739349484798,0.07088,96413.0,96412.0,0.001]
[1739349485000,0.07288,96413.0,96412.0,0.001]
[1739349485402,0.07088,96413.0,96412.0,0.001]
[1739349485594,0.07288,96413.0,96412.0,0.001]
[1739349485795,0.07288,96413.0,96406.0,0.3608]
[1739349485991,0.07288,96413.0,96404.0,0.00015556]
[1739349486206,0.07288,96413.0,96410.0,0.3608]
[1739349486706,0.07288,96413.0,96412.0,0.001]
[1739349487296,0.07088,96413.0,96410.0,0.3608]
[1739349487602,0.07288,96413.0,96410.0,0.3618]
[1739349488700,0.07088,96413.0,96410.0,0.3618]
[1739349488905,0.07288,96413.0,96410.0,0.3618]
[1739349489097,0.07288,96413.0,96412.0,0.001]
[1739349490401,0.07288,96413.0,96410.0,0.3618]
[1739349491000,0.004,96413.0,96410.0,0.3618]
[1739349491305,0.06888,96412.0,96410.0,0.3618]
[1739349492398,0.07088,96412.0,96410.0,0.3608]
[1739349493210,0.07288,96412.0,96410.0,0.3618]
[1739349503912,0.004,96412.0,96410.0,0.3618]
[1739349504117,0.004,96412.0,96411.0,0.2074557]
[1739349505110,0.06888,96424.0,96411.0,0.2074557]
[1739349505414,0.002,96412.0,96411.0,0.2074557]
[1739349505618,0.004,96412.0,96411.0,0.2074557]
[1739349506008,0.004,96412.0,96411.0,0.2084557]
[1739349509020,0.004,96412.0,96411.0,0.5692557]
[1739349510120,0.002,96412.0,96411.0,0.5692557]
[1739349511521,0.12402124,96421.0,96411.0,0.5692557]
[1739349512224,0.12402124,96421.0,96412.0,0.2074524]
[1739349512924,0.12402124,96421.0,96417.0,0.3608]
[1739349513821,0.06888,96424.0,96417.0,0.3608]
[1739349515518,0.06888,96424.0,96417.0,0.3618]
[1739349516020,0.06888,96424.0,96417.0,0.001]
[1739349516226,0.06888,96424.0,96417.0,0.3618]
[1739349516428,0.01790405,96425.0,96417.0,0.3618]
[1739349516622,0.06888,96426.0,96417.0,0.3618]
[1739349517321,0.2074275,96425.0,96417.0,0.3618]
[1739349518029,0.2074275,96425.0,96418.0,0.3608]
[1739349519026,0.2074275,96425.0,96418.0,0.3618]
[1739349519223,0.06888,96426.0,96418.0,0.5692402]
[1739349519624,0.06888,96426.0,96418.0,0.5702402]
[1739349520929,0.06888,96426.0,96418.0,0.5692402]
[1739349521824,0.06888,96426.0,96418.0,0.5682402]
[1739349522025,0.06888,96426.0,96418.0,0.5692402]
[1739349523333,0.06888,96426.0,96418.0,0.2084402]
[1739349523533,0.06888,96426.0,96420.0,0.3608]
[1739349524629,0.06888,96426.0,96420.0,0.3618]
[1739349524836,0.06888,96426.0,96420.0,0.3628]
[1739349531141,0.06888,96426.0,96420.0,0.002]
[1739349531338,0.06888,96426.0,96421.0,0.3608]
[1739349532542,0.06888,96426.0,96421.0,0.3618]
[1739349532837,0.28884597,96428.0,96421.0,0.3618]
[1739349533035,0.06888,96427.0,96421.0,0.3618]
[1739349534041,0.06888,96427.0,96421.0,0.3628]
[1739349535942,0.2074252,96426.0,96421.0,0.3628]
[1739349536446,0.2074279,96424.0,96421.0,0.3628]
[1739349536634,0.2074303,96423.0,96421.0,0.3628]
[1739349537136,0.2074303,96423.0,96421.0,0.3618]
[1739349537443,0.2074303,96423.0,96421.0,0.3628]
[1739349537639,0.2074303,96423.0,96421.0,0.3618]
[1739349537942,0.2074303,96423.0,96421.0,0.3628]
[1739349538146,0.2074303,96423.0,96421.0,0.3618]
[1739349538340,0.2074303,96423.0,96421.0,0.3628]
[1739349540845,0.2074303,96423.0,96421.0,0.002]
[1739349544843,0.2074303,96423.0,96421.0,0.00141865]
[1739349551753,0.06884,96422.0,96421.0,0.00141865]
[1739349553646,0.06984,96422.0,96421.0,0.002]
[1739349554452,0.1654003,96422.0,96421.0,0.002]
[1739349557757,0.06984,96422.0,96421.0,0.002]
[1739349562746,0.001,96422.0,96421.0,0.002]
[1739349562953,0.06984,96422.0,96421.0,0.002]
[1739349574781,0.2074263,96425.0,96421.0,0.002]
[1739349574782,0.06884,96423.0,96421.0,0.002]
[1739349574978,0.27627,96423.0,96421.0,0.002]
[1739349575879,0.27627,96423.0,96421.0,0.001]
[1739349576179,0.2074321,96422.0,96421.0,0.001]
[1739349576383,0.2074369,96420.0,96412.0,0.3608]
[1739349576682,0.0617,96419.0,96412.0,0.3608]
[1739349578183,0.0617,96419.0,96406.0,0.3608]
[1739349578386,0.08142547,96416.0,96412.0,0.001]
[1739349578583,0.0309,96415.0,96412.0,0.001]
[1739349578780,0.0309,96415.0,96412.0,0.002]
[1739349579286,0.0309,96415.0,96412.0,0.001]
[1739349580087,0.0369,96415.0,96412.0,0.002]
[1739349580282,0.0369,96415.0,96412.0,0.001]
[1739349581276,0.0379,96415.0,96412.0,0.002]
[1739349581979,0.3608,96413.0,96404.0,0.00015556]
[1739349582284,0.06884,96412.0,96404.0,0.00015556]
[1739349583185,0.2074613,96409.0,96404.0,0.00015556]
[1739349583778,0.2074613,96409.0,96404.0,0.00115556]
[1739349584676,0.2094613,96409.0,96404.0,0.00115556]
[1739349585473,0.2144613,96409.0,96404.0,0.00115556]
[1739349587289,0.2074633,96408.0,96404.0,0.00115556]
[1739349588184,0.3608,96405.0,96404.0,0.00115556]
[1739349588390,0.5682686,96405.0,96404.0,0.00115556]
[1739349589688,0.5752686,96405.0,96404.0,0.00215556]
[1739349591285,0.5752686,96405.0,96404.0,0.00115556]
[1739349591487,0.5762686,96405.0,96404.0,0.00215556]
[1739349591687,0.68418348,96405.0,96404.0,0.00215556]
[1739349592092,0.32338348,96405.0,96404.0,0.00215556]
[1739349592289,0.68418348,96405.0,96404.0,0.00215556]
[1739349597993,0.2074923,96395.0,96387.0,0.0336]
[1739349598184,0.06884,96394.0,96387.0,0.0336]
[1739349598593,0.2763332,96394.0,96387.0,0.0336]
[1739349599586,0.2793332,96394.0,96387.0,0.0336]
[1739349599991,0.2793332,96394.0,96387.0,0.0346]
[1739349600997,0.2813332,96394.0,96387.0,0.0346]
[1739349602493,0.09558623,96393.0,96387.0,0.0346]
[1739349603098,0.2075046,96389.0,96387.0,0.0346]
[1739349605105,0.2095046,96389.0,96387.0,0.001]
[1739349605613,0.2145046,96389.0,96387.0,0.001]
[1739349606307,0.09558623,96388.0,96387.0,0.001]
[1739349607716,0.09958623,96388.0,96387.0,0.001]
[1739349608019,0.10958623,96388.0,96387.0,0.001]
[1739349608219,0.10958623,96388.0,96387.0,0.201]
[1739349609524,0.014,96388.0,96387.0,0.201]
[1739349620820,0.014,96388.0,96387.0,0.12957936]
[1739349621026,0.014,96388.0,96370.0,0.36192]
[1739349621222,0.2075278,96378.0,96370.0,0.3608]
[1739349621424,0.2075397,96372.0,96362.0,0.3608]
[1739349621734,0.2075472,96369.0,96360.0,0.0326]
[1739349621932,0.2075624,96362.0,96345.0,0.3608]
[1739349622132,0.08142547,96355.0,96346.0,0.0325]
[1739349622331,0.2075784,96354.0,96346.0,0.0325]
[1739349622729,0.16285094,96356.0,96346.0,0.0325]
[1739349622936,0.16285094,96356.0,96345.0,0.3608]
[1739349623234,0.2075943,96347.0,96344.0,0.00015565]
[1739349623634,0.06884,96346.0,96344.0,0.00015565]
[1739349624327,0.2764375,96346.0,96344.0,0.00015565]
[1739349625330,0.2784375,96346.0,96344.0,0.00015565]
[1739349625724,0.2076315,96330.0,96328.0,0.18624259]
[1739349627233,0.2086315,96330.0,96328.0,0.18624259]
[1739349627839,0.2076379,96327.0,96321.0,0.00155683]
[1739349629239,0.2076379,96327.0,96322.0,0.3628]
[1739349630136,0.2116379,96327.0,96322.0,0.3608]
[1739349630739,0.2126379,96327.0,96322.0,0.3608]
[1739349631433,0.2126379,96327.0,96321.0,0.00155683]
[1739349632641,0.2116379,96327.0,96321.0,0.00155683]
[1739349634632,0.004,96327.0,96321.0,0.00155683]
[1739349634829,0.2076397,96326.0,96321.0,0.00155683]
[1739349635843,0.004,96327.0,96325.0,0.2076408]
[1739349635844,0.001,96327.0,96325.0,0.2076408]
[1739349636043,0.003,96326.0,96325.0,0.2076408]
[1739349636528,0.004,96326.0,96325.0,0.2076408]
[1739349637539,0.003,96326.0,96325.0,0.2076408]
[1739349637938,0.008,96327.0,96325.0,0.2086408]
[1739349638137,0.002,96326.0,96325.0,0.2086408]
[1739349638634,0.002,96326.0,96325.0,0.2076408]
[1739349638843,0.008,96326.0,96325.0,0.2086408]
[1739349639534,0.00384443,96326.0,96325.0,0.5694408]
[1739349640340,0.00384443,96326.0,96325.0,0.8694408]
[1739349640842,0.00384443,96326.0,96325.0,0.5694408]
[1739349641232,0.00384443,96326.0,96325.0,0.8694408]
[1739349641431,0.00015565,96339.0,96338.0,0.2076129]
[1739349641642,0.00015565,96339.0,96338.0,0.6372529]
[1739349642748,0.02115565,96339.0,96338.0,0.6382529]
[1739349644846,0.02115565,96339.0,96338.0,0.5694129]
[1739349645045,0.02115565,96339.0,96338.0,0.3618]
[1739349648340,0.02115565,96339.0,96338.0,0.001]
[1739349654744,0.02115565,96339.0,96333.0,0.20474042]
[1739349654745,0.13951303,96339.0,96313.0,0.0674]
[1739349654945,0.12429718,96329.0,96315.0,0.2076613]
[1739349655151,0.0643,96328.0,96319.0,0.00015565]
[1739349657956,0.08484999,96328.0,96319.0,0.00015565]
[1739349658458,0.0643,96328.0,96319.0,0.00015565]
[1739349658952,0.06884,96334.0,96327.0,0.2076364]
[1739349659158,0.37970242,96339.0,96329.0,0.2076321]
[1739349659360,0.17209042,96339.0,96334.0,0.2076197]
[1739349659857,0.00015565,96339.0,96337.0,0.2076137]
[1739349660051,0.00015565,96339.0,96337.0,0.5684137]
[1739349660753,0.00515565,96339.0,96337.0,0.5684137]
[1739349660954,0.00415565,96339.0,96337.0,0.5684137]
[1739349661559,0.10149572,96365.0,96355.0,0.2075761]
[1739349661748,0.10149572,96365.0,96356.0,0.3608]
[1739349662145,0.10149572,96365.0,96356.0,0.568373]
[1739349662959,0.10149572,96365.0,96356.0,0.3608]
[1739349663264,0.07729572,96365.0,96364.0,0.2075569]
[1739349663466,0.07729572,96365.0,96364.0,0.14417441]
[1739349663853,0.007,96365.0,96364.0,0.14417441]
[1739349664353,0.01,96365.0,96364.0,0.14417441]
[1739349665150,0.007,96365.0,96364.0,0.14417441]
[1739349666964,0.085275,96365.0,96364.0,0.14617441]
[1739349667163,0.085275,96365.0,96364.0,0.50697441]
[1739349667366,0.078275,96365.0,96364.0,0.50597441]
[1739349667556,0.083275,96365.0,96364.0,0.50597441]
[1739349668169,0.082275,96365.0,96364.0,0.50597441]
[1739349668355,0.082275,96365.0,96364.0,0.50497441]
[1739349669962,0.080275,96365.0,96364.0,0.50497441]
[1739349670157,0.007,96365.0,96364.0,0.50697441]
[1739349670462,0.007,96365.0,96364.0,0.3628]
[1739349676560,0.08326943,96365.0,96364.0,0.3628]
[1739349681577,0.08326943,96365.0,96364.0,0.29136711]
[1739349682779,0.08326943,96365.0,96345.0,0.57882]
[1739349682780,0.44406943,96365.0,96345.0,0.57882]
[1739349682969,0.3608,96357.0,96351.0,1e-08]
[1739349683173,0.031,96356.0,96351.0,1e-08]
[1739349684271,0.2075827,96352.0,96351.0,1e-08]
[1739349684575,0.2764227,96352.0,96351.0,1e-08]
[1739349685980,0.2784227,96352.0,96351.0,1e-08]
[1739349686281,0.2804227,96352.0,96351.0,1e-08]
[1739349686477,0.2076214,96335.0,96315.0,0.2076612]
[1739349686685,0.12429718,96332.0,96318.0,0.2076548]
[1739349686880,0.0335,96331.0,96318.0,0.2076548]